Cogmind - Beta 9.6 @@@ ROGUE MODE // 2020.06.02 @ 22:36:46 Player: Demise Result: Core destroyed Performance ------------- Evolutions (0) 0 Regions Visited (1) 200 Robots Destroyed (19) 95 Value Destroyed (580) 580 Prototype IDs (0) 0 Alien Tech Used (0) 0 Bonus (0) 0 TOTAL SCORE: 875 Bonus ------- None Cogmind --------- Core Integrity 0/250 Matter 300/300 Energy 10/100 System Corruption 0% Temperature Cool (546) Movement Treading (160) Location -10/Materials Parts ------- > --- POWER (1) -------- (None) > --- PROPULSION (2) --- Light Treads Light Treads > --- UTILITY (2) ------ Small Storage Unit Light Armor Plating > --- WEAPON (2) ------- Beam Rifle Beam Rifle > --- INVENTORY (6) ---- Signal Interpreter Heavy EM Pulse Gun Heavy EM Pulse Gun Heavy EM Pulse Gun Heavy EM Pulse Gun Grenade Launcher Peak State ------------ > --- POWER ------------ Light Ion Engine > --- PROPULSION ------- Light Treads Light Treads > --- UTILITY ---------- Small Storage Unit Improved Terrain Scanner > --- WEAPON ----------- Beam Rifle Beam Rifle > --- INVENTORY -------- Heavy EM Pulse Gun Heavy EM Pulse Gun Heavy EM Pulse Gun Heavy EM Pulse Gun Beam Rifle Grenade Launcher [Rating: 11] Favorites ----------- Power Light Ion Engine Engine Light Ion Engine Propulsion Light Treads Treads Light Treads Leg Aluminum Leg Wheel Compact Wheel Utility Small Storage Unit Device Improved Terrain Scanner Storage Small Storage Unit Protection Light Armor Plating Weapon Beam Rifle Energy Gun Beam Rifle Ballistic Gun Assault Rifle Build | -11 -10 ------- Run | Scr Mat Slots Evolved . | . . Power . | . . Propulsion . | . . Utility . | . . Weapon . | . . Parts Attached 12 | 1 11 Power . | . . Engine . | . . Core . | . . Reactor . | . . Propulsion 5 | . 5 Treads 2 | . 2 Leg . | . . Wheel 3 | . 3 Hover . | . . Flight . | . . Utility 2 | 1 1 Device 1 | 1 . Storage . | . . Processor . | . . Hackware . | . . Protection 1 | . 1 Artifact . | . . Weapon 5 | . 5 Energy Gun 4 | . 4 Energy Cannon . | . . Ballistic Gun 1 | . 1 Ballistic Cannon . | . . Launcher . | . . Special Weapon . | . . Impact Weapon . | . . Slashing Weapon . | . . Piercing Weapon . | . . Special Melee Weapon . | . . Unidentified Prototypes . | . . Parts Lost 5 | . 5 Power 1 | . 1 Propulsion . | . . Utility 1 | . 1 Weapon 3 | . 3 Highest Loss Streak 1 | . 1 Average Slot Usage (%) 93 | . 93 Engine 13 | . 13 Treads 17 | . 17 Wheel 10 | . 10 Device 8 | . 8 Storage 14 | . 14 Protection 2 | . 2 Energy Gun 25 | . 25 Naked Turns . | . . Heaviest Build 16 | 12 16 Greatest Support 40 | 20 40 Greatest Overweight (x) . | . . Average Overweight (x) . | . . Largest Inventory Capacity 6 | 6 6 Average Capacity 6 | 6 6 Most Carried 6 | 6 6 Average Carried 5 | 6 5 Final Capacity 6 | 6 6 Final Carried 6 | 6 6 Class Distribution -------------------- 100% | Mutant Dominant Class ---------------- Mutant | -10/Materials Resources | -11 -10 ----------- Run | Scr Mat Matter Collected 310 | 210 100 Remotely . | . . Salvage Created 835 | 125 710 Parts 37 | 5 32 Haulers Intercepted 1 | . 1 Recyclers Shooed . | . . Parts Field Recycled . | . . Retrieved Matter . | . . Parts Self-Destructed . | . . Prevented . | . . Kills | -11 -10 ------- Run | Scr Mat Combat Hostiles Destroyed 15 | . 15 Guns 15 | . 15 Classes Destroyed 5 | 2 3 Tunneler 1 | 1 . Hauler 1 | . 1 Recycler 1 | 1 . Watcher 1 | . 1 Grunt 15 | . 15 Best Kill Streak 8 | 2 8 Combat Bots Only 4 | . 4 Max Kills in Single Turn 2 | 1 2 Gunslinging 1 | . 1 Exploded . | . . Melee . | . . Uniques/NPCs Destroyed . | . . Combat | -11 -10 -------- Run | Scr Mat Damage Taken 824 | . 824 Core 272 | . 272 Absorbed by Shields . | . . Core Remaining (%) 100 | 100 . Volleys Fired 64 | 6 58 Largest 2 | 2 2 Hottest 112 | 90 112 Shots Fired 113 | 12 101 Gun 113 | 12 101 Cannon . | . . Launcher . | . . Special . | . . Kinetic . | . . Thermal 104 | 6 98 Explosive . | . . Electromagnetic 9 | 6 3 Robot Hit Streak 23 | 3 23 Robot Miss Streak 3 | 2 3 Penetration Max . | . . Secondary Targets 4 | . 4 Max Gunslinging Chain 1 | . 1 Shots Hit Robots 76 | 6 70 Core Hits 31 | 2 29 Critical Hits . | . . Critical Kills . | . . Critical Parts Destroyed . | . . Melee Attacks . | . . Impact . | . . Slashing . | . . Piercing . | . . Sneak Attacks . | . . Combat Hostiles . | . . Follow-up Attacks . | . . Damage Inflicted 1126 | 127 999 Guns 1079 | 80 999 Cannons . | . . Explosions 47 | 47 . Melee . | . . Ramming . | . . Kinetic . | . . Thermal 1033 | 60 973 Explosive . | . . Electromagnetic 93 | 67 26 Impact . | . . Slashing . | . . Piercing . | . . Highest Corruption . | . . Average Corruption . | . . Corruption Purged . | . . Overload Shots . | . . Overflow Damage 17 | 17 . Projectiles . | . . Explosions 17 | 17 . Melee . | . . Knockbacks . | . . Impact . | . . Kinetic . | . . Secondary . | . . Self-Inflicted Damage . | . . Shots . | . . Rammed . | . . Targets Rammed . | . . Kicked . | . . Crushed . | . . Highest Temperature 575 | 180 575 Average Temperature 139 | 88 144 Received Heat Transfer 438 | . 438 Effects 5 | . 5 Energy Bleed 1 | . 1 Matter Decay 1 | . 1 Short Circuit 1 | . 1 Damage (minor) 1 | . 1 Damage (core) 1 | . 1 Siege Activations . | . . Robots Corrupted . | . . Combat Hostiles . | . . Parts Fried . | . . Impact Corruptions . | . . Robots Melted . | . . Combat Hostiles . | . . Parts Melted 3 | . 3 Heat Transferred 2603 | 87 2516 Parts Sabotaged . | . . Parts Stolen . | . . Parts Stripped . | . . Power Chain Reactions 1 | 1 . Missiles Intercepted . | . . Alert | -11 -10 ------- Run | Scr Mat Peak Influence 269 | 10 269 Average Influence 71 | 6 74 Maximum Alert Level 1 | . 1 Low Security (%) 94 | 100 94 Level 1 5 | . 5 Level 2 . | . . Level 3 . | . . Level 4 . | . . Level 5 . | . . High Security . | . . Max Security . | . . Squads Dispatched 3 | . 3 Investigation . | . . Extermination . | . . Reinforcement 3 | . 3 Assault . | . . Garrison . | . . Intercept . | . . Construction Impeded . | . . Haulers Reinforced . | . . Stealth | -11 -10 --------- Run | Scr Mat Distress Signals 4 | . 4 Communications Jammed . | . . Distress Signals . | . . Times Spotted 29 | . 29 Peak Tracking Total 6 | . 6 Tactical Retreats 1 | . 1 Traps | -11 -10 ------- Run | Scr Mat Traps Triggered . | . . Indirectly . | . . Trap Hack Attempts . | . . Triggered . | . . Disarmed . | . . Reprogrammed . | . . Reused . | . . Traps Extracted . | . . Installed . | . . Triggered . | . . Machines | -11 -10 ---------- Run | Scr Mat Machines Disabled . | . . Max in Single Turn . | . . Machines Sabotaged . | . . Garrisons Compromised . | . . Overloaded Fab Kills . | . . Fab Network Shutdowns . | . . Hacking | -11 -10 --------- Run | Scr Mat Machines Accessed 1 | . 1 Terminals 1 | . 1 Fabricators . | . . Repair Stations . | . . Recycling Units . | . . Scanalyzers . | . . Garrison Access . | . . Total Hacks 4 | . 4 Successful 3 | . 3 Failed 1 | . 1 Catastrophic . | . . Database Lockouts . | . . Manual 4 | . 4 Terminals 4 | . 4 Fabricators . | . . Repair Stations . | . . Recycling Units . | . . Scanalyzers . | . . Garrison Access . | . . Terminal Hacks . | . . Fabricator Hacks . | . . Repair Station Hacks . | . . Recycling Unit Hacks . | . . Scanalyzer . | . . Garrison Access Hacks . | . . Unauthorized Hacks 3 | . 3 Terminals 3 | . 3 Track 1 | . 1 Botnet 1 | . 1 Operators 1 | . 1 Fabricators . | . . Repair Stations . | . . Recycling Units . | . . Scanalyzers . | . . Garrison Access . | . . Data Cores Recovered . | . . Used . | . . Hacking Detections 1 | . 1 Full Trace Events . | . . Feedback Events . | . . Feedback Blocked . | . . Robot Schematics Acquired . | . . Robots Built . | . . Matter . | . . Time . | . . Total Robot Build Rating . | . . Part Schematics Acquired . | . . Parts Built . | . . Matter . | . . Time . | . . Total Part Build Rating . | . . Parts Repaired . | . . Time . | . . Parts Recycled . | . . Recycled Matter . | . . Retrieved Matter . | . . Retrieved Components . | . . Parts Scanalyzed . | . . Part Schematics Acquired . | . . Parts Damaged . | . . Bothacking | -11 -10 ------------ Run | Scr Mat Used RIF Installer . | . . Robots Hacked . | . . Non-combat . | . . Combat . | . . Robot Hacks Applied . | . . Relay Couplers Released . | . . Robots Rewired . | . . Allies Hacked . | . . Hacks Repelled . | . . Allies | -11 -10 -------- Run | Scr Mat Total Allies . | . . Largest Group . | . . Highest-Rated Group . | . . Highest-Rated Ally . | . . Total Orders . | . . Ally Attacks . | . . Total Damage . | . . Kills . | . . Allies Corrupted . | . . Allies Melted . | . . Intel | -11 -10 ------- Run | Scr Mat Robot Analysis Total . | . . Derelict Logs Recovered . | . . Drone Launches . | . . Drone Recoveries . | . . Exploration | -11 -10 ------------- Run | Scr Mat Turns Passed 699 | 32 667 Spaces Moved 281 | 11 270 Core . | . . Treads 141 | . 141 Legs 16 | 11 5 Wheels 124 | . 124 Hover . | . . Flight . | . . Fastest Speed 100 | 120 100 Average Speed 131 | 120 131 Slowest Speed 160 | 120 160 Overloaded Moves . | . . Propulsion Burnouts . | . . Robots Hopped . | . . Cave-ins Triggered . | . . Exploration Rate (%) 22 | 2 42 Regions Visited 1 Branch Regions . Pre-discovered Areas . | . . Known Exits Taken . | . . Unknown Exits Taken 1 | 1 . Scrap Searched . | . . Spaces Dug . | . . Terrain Destroyed 2 | 2 . Melee . | . . Projectile . | . . AOE 2 | 2 . Actions | -11 -10 --------- Run | Scr Mat Total 501 | 17 484 Wait 128 | . 128 Move 280 | 10 270 Hop . | . . Pick Up 8 | . 8 Fast Attach 5 | 1 4 Attach 6 | . 6 Detach 1 | . 1 Swap 1 | . 1 Drop 8 | . 8 Fire 64 | 6 58 Melee . | . . Ram . | . . Kick . | . . Crush . | . . Escape Stasis . | . . Rewire . | . . Trap . | . . Miscellaneous . | . . Route ------- -11/Scrapyard -10/Materials History --------- Turn | Location | Event 1 | -11/Scrapyard | Discovered new exit (range 2) 33 | -11/Scrapyard | Entered Materials 321 | -10/Materials | Build established: Mutant 487 | -10/Materials | Core integrity fell below 50% 675 | -10/Materials | Core integrity fell below 20% 701 | -10/Materials | Core destroyed Last Messages --------------- 00652_ G-34 Mercenary destroyed. 00652_ Switching to secondary target: G-47 Trooper. 00653_ K-01 Serf collects debris. 00661_ Lgt. Ion Engine destroyed. 00661_ G-47 Trooper destroyed. 00661_ Switching to secondary target: G-34 Mercenary. 00661_ G-34 Mercenary destroyed. 00661_ K-01 Serf collects debris. 00664_ Heat Sink melted. 00664_ G-34 Mercenary destroyed. 00664_ K-01 Serf collects debris. 00665_ Overheating: Energy bleed (-11). 00667_ K-01 Serf collects debris. 00679_ A-02 Transporter destroyed. 00682_ K-01 Serf collects debris. 00696_ Lgt. Treads permanently disabled. 00696_ Overheating: Short circuit. 00699_ Overheating: Matter decay (-60). 00700_ Overheating: Sml. Storage Unit damaged (-54). 00701_ Overheating: Core damaged (-40). Map ----- +----------------------------------------------------+ | ???????????????????????????????????????????????? | | ???????????????????????????????????????????????? | | ???????????????????????????????????????????????? | | ???????????????????????????????????????????????? | | ???????????????????????????????????????????????? | | ???????????????????????????????????????????????? | | ???????????????????????????????????????????????? | | ???????????????????????????????????????????????? | | ?????????????????????????? ???????????????????? | | ????????????????????????? #??????????????????? | | ?????#######????????????? #??????????????????? | | ??? =#????????????? +??????????????????? | | ??# """"" #????????????? #??????????????????? | | ### ""T"" #????????????? #??????????????????? | | # #????????????? #??????????????????? | | + #????????????? #??????????????????? | | # """"" #????????????#w #??????????????????? | | # """"" ##############u #??????????????????? | | # """"" + !=#??????????????????? | | # ## k%#??????????????????? | | #####+##### !=#??????????????????? | | #??# !* *#??????????????????? | | o #??# =%=%= #??????????????????? | | #??# %==*= #??????????????????? | | ###### #??# =###+##gg #??????????????????? | | ?? ?# #??# #!!%##@ #??????????????????? | | ?????# #??# ==/%!%## k#??????????????????? | | ?????# %##[![## #??????????????????? | | ????# *!##[[*## #??????????????????? | | ?????+ ###[!%# ??????????????????? | | ?????# #?#[!!# ?????????????????? | | ?????###### #?# # ????????????????? | | ??"???????# #?##### ???????????????? | | ???? #????# #?????? ####??????????????? | | ???????? ?? ???????######?????????????????? | | ????????????? ??????????????????????????????? | | #?????? ???????????????????????????????????????? | | ???? ??????????????????????????????????????????? | | ???? ????????????????????????????????????????o?? | | "???????? ?????????????????????????????????????? | | ?????#?????????????????????????????????????????? | | ??" ?#????? ???????????????????????????????????? | | ?? ????????????????????????????????????????????? | | ??"????????????????????????????????????????????? | | ?""????????????????????????????????????????????? | | ?????#????#????????????????????????????????????? | | ???? ??? ??????????????????????????????????????? | | ? ?? ?? ???????????????????????????????????????? | | ???????????????????????????????????????????????? | | ??? ???????????????????????????????????????????? | +----------------------------------------------------+ Best States ------------- Heat Dissipation 25 Energy Generation 10 Energy Capacity 125 Matter Stores 300 Matter Capacity 300 Sight Range 16 Terrain Scan Range 16 Terrain Scan Density 10 Armor Coverage 150 Evasion (%) 40 Recoil Reduction 2 Item Schematics ----------------- None Robot Schematics ------------------ None Fabricated ------------ Nothing Alien Tech Used ----------------- None Achievements -------------- None Challenges ------------ None Game ------ Seed GuidanceGravityMagmablaster Manual? 0 Play Time 00:06:21 Cumulative 216.5 hours Start 2020.06.02 @ 22:30:41 End 2020.06.02 @ 22:36:46 Sessions 1 Manual Loads 0 Difficulty Rogue Special Mode None Game No. 283 Rogue 272 Adventurer 11 Explorer 0 Win Type - Total 0 Types 0/0/0/0/0/0/0 Lore% 52 Gallery% 66 Achievement% 45 Wizard Run 0 Options --------- ASCII 0 Keyboard 1 Movement Numpad Keybinds 0 Fullscreen 1 Font 12/Terminus Map View 83x54 Tactical HUD 1 Map Filters NONE Filters NONE Steam 1 RUN: 9e85d2c1-0b15-4e68-ba6b-0764a4f1d56f